Cogmind - Beta 13 @@@ ROGUE MODE // 2024.07.23 @ 19:59:08 Player: CONM Result: Destroyed by G-67 Veteran with Plasma Rifle Performance ------------- Evolutions (5) 2500 Regions Visited (12) 2400 Robots Destroyed (60) 300 Value Destroyed (1379) 1379 Prototype IDs (44) 880 Alien Tech Used (0) 0 Bonus (1315) 1315 TOTAL SCORE: 8774 Bonus ------- High Alert Combat Kills 15 Aligned with FarCom 300 Met Warlord at Base 500 MAIN.C Attacked Warlord 500 Cogmind --------- Core Integrity 0/1000 Matter 40/300 Energy 60/100 System Corruption 0% Temperature Cool (21) Movement Core (50) Location -4/Proximity Caves Parts ------- > --- POWER (2) -------- (None) > --- PROPULSION (6) --- (None) > --- UTILITY (7) ------ (None) > --- WEAPON (2) ------- (None) > --- INVENTORY (5) ---- Improved Cesium-ion Thruster 0b10 Decoder Chip [Generic] Advanced ECM Suite Advanced Reaction Control System Heavy Gauss Cannon Peak State ------------ > --- POWER ------------ Fission Core Light Fission Core > --- PROPULSION ------- Improved Cesium-ion Thruster Improved Cesium-ion Thruster Improved Cesium-ion Thruster Improved Cesium-ion Thruster Improved Cesium-ion Thruster Improved Cesium-ion Thruster > --- UTILITY ---------- Advanced Cooling System Medium Storage Unit Advanced Weight Redist. System Machine Analyzer Improved Signal Interpreter Improved Propulsion Shielding Hacking Suite > --- WEAPON ----------- Powered Hammer Great Axe > --- INVENTORY -------- Micro Fission Core Nuclear Pulse Thruster Large Battery 0b10 Decoder Chip [Generic] Advanced ECM Suite Advanced Reaction Control System Improved Medium Armor Plating Remote Force Field Heavy Gauss Cannon Proton Missile Launcher [Rating: 74] Favorites ----------- Power Ion Engine Engine Ion Engine Power Core Fission Core Propulsion Improved Cesium-ion Thruster Treads Light Treads Leg Potential Leg Flight Unit Improved Cesium-ion Thruster Utility Medium Storage Unit Device Structural Scanner Storage Medium Storage Unit Processor Machine Analyzer Hackware Hacking Suite Protection Improved Propulsion Shielding Weapon Assault Rifle Energy Cannon Long-range Proton Cannon Ballistic Gun Assault Rifle Ballistic Cannon Advanced Assault Cannon Launcher Grenade Launcher Special Weapon Remote Datajack Impact Weapon Powered Hammer Slashing Weapon Great Axe Build | -11 -10 -10 -10 -9 -8 -7 -6 -5 -5 -5 -5 -4 ------- Run | Yrd Mat Min Exi Min Mat Fac Fac Fac Upp Upp War Pro Slots Evolved 10 | . . . . . 4 2 2 2 . . . . Power 1 | . . . . . . . 1 . . . . . Propulsion 4 | . . . . . 2 1 1 . . . . . Utility 5 | . . . . . 2 1 . 2 . . . . Weapon . | . . . . . . . . . . . . . Parts Attached 100 | 7 1 1 1 2 22 22 9 12 3 2 7 11 Power 12 | 1 1 . . . 2 2 2 1 . . . 3 Engine 6 | 1 1 . . . 1 2 1 . . . . . Core 6 | . . . . . 1 . 1 1 . . . 3 Reactor . | . . . . . . . . . . . . . Propulsion 21 | 2 . . . . 6 5 1 . . . 4 3 Treads 2 | 2 . . . . . . . . . . . . Leg 6 | . . . . . 6 . . . . . . . Wheel . | . . . . . . . . . . . . . Hover . | . . . . . . . . . . . . . Flight 13 | . . . . . . 5 1 . . . 4 3 Utility 38 | 2 . . 1 1 6 9 4 7 3 1 2 2 Device 16 | 1 . . . 1 1 4 3 1 2 1 1 1 Storage 4 | 1 . . 1 . 2 . . . . . . . Processor 4 | . . . . . 2 1 . 1 . . . . Hackware 2 | . . . . . . . 1 1 . . . . Protection 12 | . . . . . 1 4 . 4 1 . 1 1 Artifact . | . . . . . . . . . . . . . Weapon 29 | 2 . 1 . 1 8 6 2 4 . 1 1 3 Energy Gun . | . . . . . . . . . . . . . Energy Cannon 1 | . . . . . . . . 1 . . . . Ballistic Gun 6 | 2 . . . 1 2 . . 1 . . . . Ballistic Cannon 5 | . . . . . . 2 1 1 . . . 1 Launcher 9 | . . 1 . . 4 1 . 1 . . . 2 Special Weapon 2 | . . . . . . 1 1 . . . . . Impact Weapon 5 | . . . . . 2 2 . . . 1 . . Slashing Weapon 1 | . . . . . . . . . . . 1 . Piercing Weapon . | . . . . . . . . . . . . . Special Melee Weapon . | . . . . . . . . . . . . . Unidentified Prototypes 2 | . . . . . . 2 . . . . . . Parts Lost 28 | . . . . 1 14 1 . 1 1 . 2 8 Power 3 | . . . . . 2 1 . . . . . . Propulsion 8 | . . . . . 3 . . . . . . 5 Utility 11 | . . . . 1 4 . . 1 1 . 2 2 Weapon 6 | . . . . . 5 . . . . . . 1 Highest Loss Streak 8 | . . . . 1 6 1 . 1 1 . 2 8 To Critical Strikes . | . . . . . . . . . . . . . Average Slot Usage (%) 89 | . 100 100 100 93 80 80 89 90 94 94 93 47 Engine 7 | . 14 14 14 14 2 6 1 . . . . . Core 2 | . . . . . 5 . 4 8 11 11 10 3 Treads 12 | . 28 28 28 28 4 . . . . . . . Leg 6 | . . . . . 21 17 . . . . . . Flight 12 | . . . . . . 15 37 35 35 35 33 18 Device 10 | . 14 14 14 12 12 6 8 7 7 10 10 . Storage 9 | . 14 14 14 14 9 7 6 5 5 5 5 4 Processor 4 | . . . . . 6 7 6 10 11 11 11 10 Hackware 1 | . . . . . . . 3 5 5 5 5 3 Protection 3 | . . . . . 3 7 6 6 9 5 5 2 Ballistic Gun 9 | . 28 14 14 22 9 . . . . . . . Launcher 3 | . . 13 14 1 3 . . . 5 1 . . Impact Weapon 2 | . . . . . 3 6 6 4 . 3 4 . Naked Turns 5 | . . . . . . . . . . . . 5 Heaviest Build 44 | 14 14 16 21 21 28 43 32 44 43 43 38 19 Greatest Support 85 | 40 40 40 40 40 85 85 45 36 45 45 45 30 Greatest Overweight (x) 3 | 1 . . . . 2 1 . 1 1 . . 3 Average Overweight (x) . | . . . . . . . . . . . . . Largest Inventory Capacity 25 | 8 8 8 10 10 25 10 10 10 10 10 10 10 Average Capacity 9 | 7 8 8 8 10 10 10 10 10 10 10 10 9 Most Carried 10 | 4 8 8 8 10 10 10 10 10 10 10 10 8 Average Carried 8 | 2 6 7 7 9 8 9 9 9 9 9 9 6 Final Capacity 10 | 8 8 8 10 10 10 10 10 10 10 10 10 5 Final Carried 10 | 4 8 8 8 10 10 10 10 10 9 10 7 5 Class Distribution -------------------- 69% | Mutant 19% | Scout 7% | Sprinter 3% | Assassin Dominant Class ---------------- Mutant | -10/Materials Mutant | -10/Mines Mutant | -10/Exiles Mutant | -9/Mines Mutant | -8/Materials Mutant | -7/Factory Scout | -6/Factory Scout | -5/Factory Sprinter | -5/Upper Caves Sprinter | -5/Upper Caves Sprinter | -5/Warlord Sprinter | -4/Proximity Caves Resources | -11 -10 -10 -10 -9 -8 -7 -6 -5 -5 -5 -5 -4 ----------- Run | Yrd Mat Min Exi Min Mat Fac Fac Fac Upp Upp War Pro Matter Collected 1997 | 255 157 65 . 166 367 432 282 212 . 43 . 18 Remotely . | . . . . . . . . . . . . . Salvage Created 1777 | 58 198 60 . 109 643 143 302 212 . . . 52 Parts 95 | 8 16 7 . 5 34 8 2 13 . . . 2 Haulers Intercepted 1 | . . . . . 1 . . . . . . . Recyclers Shooed 1 | . . . . . . . 1 . . . . . Parts Field Recycled . | . . . . . . . . . . . . . Retrieved Matter . | . . . . . . . . . . . . . Parts Self-Destructed 3 | . . . . . . . . . . . . 3 Prevented . | . . . . . . . . . . . . . Kills | -11 -10 -10 -10 -9 -8 -7 -6 -5 -5 -5 -5 -4 ------- Run | Yrd Mat Min Exi Min Mat Fac Fac Fac Upp Upp War Pro Combat Hostiles Destroyed 28 | . 5 3 . 3 14 1 . 1 . . . 1 Guns 10 | . 5 1 . 1 3 . . . . . . . Cannons 2 | . . . . . . 1 . . . . . 1 AOE 15 | . . 2 . 2 11 . . . . . . . Classes Destroyed 14 | 1 4 . . 2 5 2 . . . . . . Worker 7 | . 2 1 . . 1 1 2 . . . . . Builder 8 | . . . . 1 2 2 1 2 . . . . Tunneler 5 | 2 . 1 . . . . 1 1 . . . . Hauler 1 | . . . . . 1 . . . . . . . Recycler 5 | . . . . . 3 . 2 . . . . . Mechanic 1 | . . . . . . 1 . . . . . . Operator 3 | . 1 . . . . . 1 1 . . . . Watcher 2 | . . . . . 1 . . 1 . . . . Swarmer 8 | . 2 3 . . 3 . . . . . . . Grunt 14 | . 3 . . 2 8 . . . . . . 1 Brawler 1 | . . . . 1 . . . . . . . . Sentry 2 | . . . . . 1 . . 1 . . . . Specialist 2 | . . . . . 2 . . . . . . . Programmer 1 | . . . . . . 1 . . . . . . Best Kill Streak 5 | 1 3 4 . 3 5 2 2 3 . . . 1 Combat Bots Only 5 | . 2 3 . 3 5 1 . 1 . . . 1 Max Kills in Single Turn 4 | 1 1 4 . 1 2 1 1 2 . . . 1 Gunslinging . | . . . . . . . . . . . . . Exploded 2 | . . 2 . 1 2 . . . . . . . Melee . | . . . . . . . . . . . . . Uniques/NPCs Destroyed . | . . . . . . . . . . . . . Combat | -11 -10 -10 -10 -9 -8 -7 -6 -5 -5 -5 -5 -4 -------- Run | Yrd Mat Min Exi Min Mat Fac Fac Fac Upp Upp War Pro Hostile Shots Fired 451 | . 35 4 . 10 116 51 53 22 7 8 55 90 Missed 154 | . 12 2 . 4 30 22 31 8 4 2 11 28 Damage Taken 5012 | . 244 17 . 246 1507 419 221 235 53 111 775 1184 Core 1395 | . 27 . . 67 133 114 51 36 . 17 319 631 Absorbed by Shields 62 | . . . . . . 4 . 50 . . . 8 Redirected to Shielding 107 | . . . . . . 22 33 20 . 22 10 . Core Remaining (%) 82 | 100 . . . 62 75 83 94 . . . . . Volleys Fired 160 | 2 31 2 . 11 40 23 26 18 . . . 7 Largest 2 | 2 2 2 . 2 2 1 1 1 . . . 1 Hottest 81 | 40 40 50 . 50 63 48 48 81 . . . 61 Shots Fired 221 | 4 62 4 . 16 61 23 26 18 . . . 7 Gun 129 | 4 62 2 . 12 46 . . 3 . . . . Cannon 56 | . . . . . . 23 17 11 . . . 5 Launcher 27 | . . 2 . 4 15 . . 4 . . . 2 Special 9 | . . . . . . . 9 . . . . . Kinetic 176 | 4 62 2 . 12 46 23 17 5 . . . 5 Thermal . | . . . . . . . . . . . . . Explosive 21 | . . 2 . 4 15 . . . . . . . Electromagnetic 15 | . . . . . . . . 13 . . . 2 Robot Hit Streak 14 | 3 9 5 . 6 14 3 4 8 . . . 2 Robot Miss Streak 4 | . 2 . . 1 2 4 . . . . . 1 Penetration Max 1 | . . . . . 1 . . . . . . . Secondary Targets 1 | . 1 . . . . . . . . . . . Max Gunslinging Chain 1 | . 1 . . . . . . . . . . . Shots Hit Robots 123 | 3 41 2 . 12 38 7 10 7 . . . 3 Core Hits 88 | 2 17 6 . 6 47 4 . 4 . . . 2 Critical Kills . | . . . . . . . . . . . . . Critical Parts Destroyed 6 | . 2 . . . . . 3 1 . . . . Critical Strikes 7 | . 2 . . . . . 3 1 . . . 1 Destroy 2 | . 2 . . . . . . . . . . . Blast 1 | . . . . . . . . . . . . 1 Smash 4 | . . . . . . . 3 1 . . . . Melee Attacks 99 | . . . . . 5 42 31 16 . 4 1 . Impact 99 | . . . . . 5 42 31 16 . 4 1 . Slashing . | . . . . . . . . . . . . . Piercing . | . . . . . . . . . . . . . Sneak Attacks 14 | . . . . . 3 3 6 2 . . . . Combat Hostiles . | . . . . . . . . . . . . . Follow-up Attacks . | . . . . . . . . . . . . . Damage Inflicted 4960 | 36 428 134 . 360 2029 518 844 475 . . . 136 Guns 1064 | 36 428 22 . 130 448 . . . . . . . Cannons 231 | . . . . . . 120 . . . . . 111 Explosions 1893 | . . 112 . 230 1270 16 . 240 . . . 25 Melee 1772 | . . . . . 311 382 844 235 . . . . Ramming . | . . . . . . . . . . . . . Kinetic 1295 | 36 428 22 . 130 448 120 . . . . . 111 Thermal . | . . . . . . . . . . . . . Explosive 1612 | . . 112 . 230 1270 . . . . . . . Electromagnetic 281 | . . . . . . 16 . 240 . . . 25 Impact 1772 | . . . . . 311 382 844 235 . . . . Slashing . | . . . . . . . . . . . . . Piercing . | . . . . . . . . . . . . . Highest Corruption 2 | . . . . 2 . 1 . 2 2 2 2 . Average Corruption 1 | . . . . 2 . 1 . 2 2 2 2 . Corruption Purged . | . . . . . . . . . . . . . Corruption Blocked . | . . . . . . . . . . . . . Effects 22 | . . . . 10 . 1 . 9 1 1 . . Message Errors 9 | . . . . 4 . . . 4 . 1 . . Matter Fused 4 | . . . . 2 . . . 2 . . . . Heat Flow Errors 3 | . . . . 2 . 1 . . . . . . Energy Discharges 2 | . . . . 1 . . . 1 . . . . Parts Fused 1 | . . . . . . . . 1 . . . . Data Loss (minor) 1 | . . . . . . . . . 1 . . . Data Loss (major) 1 | . . . . . . . . 1 . . . . Misfires 1 | . . . . 1 . . . . . . . . Overload Shots . | . . . . . . . . . . . . . Overflow Damage 1064 | . . . . 10 218 70 595 171 . . . . Projectiles . | . . . . . . . . . . . . . Explosions 42 | . . . . 10 7 . . 25 . . . . Melee 1022 | . . . . . 211 70 595 146 . . . . Knockbacks 7 | . . . . . . 2 5 . . . . . Impact 6 | . . . . . . 1 5 . . . . . Kinetic 1 | . . . . . . 1 . . . . . . Secondary . | . . . . . . . . . . . . . Self-Inflicted Damage 383 | . . . . 117 239 27 . . . . . . Shots 11 | . . . . 4 6 1 . . . . . . Rammed . | . . . . . . . . . . . . . Targets Rammed . | . . . . . . . . . . . . . Kicked . | . . . . . . . . . . . . . Crushed . | . . . . . . . . . . . . . Highest Temperature 454 | . 21 . . 236 80 351 454 251 446 314 148 171 Average Temperature 93 | . 8 . . 95 36 99 80 93 239 150 72 92 Received Heat Transfer 1707 | . 117 . . 12 702 18 33 33 18 9 442 323 Effects 13 | . . . . . . 4 7 . 2 . . . Shutdowns 4 | . . . . . . . 2 . 2 . . . Energy Bleed 3 | . . . . . . 1 2 . . . . . Interference 6 | . . . . . . 3 3 . . . . . Siege Activations . | . . . . . . . . . . . . . Robots Corrupted 1 | . . . . . . . . 1 . . . . Combat Hostiles 1 | . . . . . . . . 1 . . . . Parts Fried 20 | . . . . . 5 2 9 4 . . . . Impact Corruptions 30 | . . . . . 6 2 17 5 . . . . Robots Melted . | . . . . . . . . . . . . . Combat Hostiles . | . . . . . . . . . . . . . Parts Melted . | . . . . . . . . . . . . . Heat Transferred . | . . . . . . . . . . . . . Parts Sabotaged 14 | . . . . . . . . . . . 11 3 Parts Stolen . | . . . . . . . . . . . . . Parts Stripped . | . . . . . . . . . . . . . Power Chain Reactions . | . . . . . . . . . . . . . Alert | -11 -10 -10 -10 -9 -8 -7 -6 -5 -5 -5 -5 -4 ------- Run | Yrd Mat Min Exi Min Mat Fac Fac Fac Upp Upp War Pro Peak Influence 433 | 10 152 141 . 88 396 433 362 356 . . . . Initial 205 | . 6 22 . . . 179 205 177 . . . . Average 132 | 2 71 102 . 42 144 151 256 260 . . . . Maximum Alert Level 2 | . . . . . 1 2 1 1 . . . . Low Security (%) 72 | 100 100 100 . 100 69 67 6 30 . . . . Level 1 27 | . . . . . 30 30 93 69 . . . . Level 2 . | . . . . . . 2 . . . . . . Level 3 . | . . . . . . . . . . . . . Level 4 . | . . . . . . . . . . . . . Level 5 . | . . . . . . . . . . . . . High Security . | . . . . . . . . . . . . . Max Security . | . . . . . . . . . . . . . Squads Dispatched 16 | . 1 . . . 4 6 4 . . . . 1 Investigation 5 | . . . . . . 3 2 . . . . . Extermination 3 | . . . . . . 2 1 . . . . . Reinforcement 7 | . 1 . . . 4 1 1 . . . . . Assault 1 | . . . . . . . . . . . . 1 Garrison . | . . . . . . . . . . . . . Intercept . | . . . . . . . . . . . . . Searches Triggered . | . . . . . . . . . . . . . Construction Impeded 1 | . . . . . 1 . . . . . . . Haulers Reinforced . | . . . . . . . . . . . . . Active Scanning Responses . | . . . . . . . . . . . . . Cargo Convoy Interrupts . | . . . . . . . . . . . . . Stealth | -11 -10 -10 -10 -9 -8 -7 -6 -5 -5 -5 -5 -4 --------- Run | Yrd Mat Min Exi Min Mat Fac Fac Fac Upp Upp War Pro Distress Signals 6 | . . . . . 3 1 1 1 . . . . Communications Jammed . | . . . . . . . . . . . . . Distress Signals . | . . . . . . . . . . . . . Times Spotted 145 | . 11 3 . 2 35 22 15 10 7 3 20 17 Peak Tracking Total 15 | . 3 3 . 2 9 8 9 7 10 2 15 12 Tactical Retreats 31 | . 3 . . . 4 10 5 2 1 1 2 3 Traps | -11 -10 -10 -10 -9 -8 -7 -6 -5 -5 -5 -5 -4 ------- Run | Yrd Mat Min Exi Min Mat Fac Fac Fac Upp Upp War Pro Traps Triggered 10 | . . . . . . 3 1 6 . . . . Indirectly 2 | . . . . . . . . 2 . . . . Trap Hack Attempts . | . . . . . . . . . . . . . Triggered . | . . . . . . . . . . . . . Disarmed . | . . . . . . . . . . . . . Reprogrammed . | . . . . . . . . . . . . . Reused . | . . . . . . . . . . . . . Traps Extracted . | . . . . . . . . . . . . . Installed . | . . . . . . . . . . . . . Triggered 4 | . . . . . . . . . . . 4 . Machines | -11 -10 -10 -10 -9 -8 -7 -6 -5 -5 -5 -5 -4 ---------- Run | Yrd Mat Min Exi Min Mat Fac Fac Fac Upp Upp War Pro Machines Disabled 9 | . . 1 . . 4 4 . . . . . . Max in Single Turn 3 | . . 1 . . 3 2 . . . . . . Garrison Access 1 | . . . . . . . . 1 . . . . Machines Repaired . | . . . . . . . . . . . . . Machines Dismantled . | . . . . . . . . . . . . . Machines Sabotaged . | . . . . . . . . . . . . . Overloaded Fab Kills . | . . . . . . . . . . . . . Hacking | -11 -10 -10 -10 -9 -8 -7 -6 -5 -5 -5 -5 -4 --------- Run | Yrd Mat Min Exi Min Mat Fac Fac Fac Upp Upp War Pro Machines Accessed 41 | . 3 . 1 . 4 14 7 6 . 1 5 . Terminals 23 | . 2 . . . 4 10 3 4 . . . . Fabricators 2 | . . . . . . 2 . . . . . . Repair Stations 1 | . . . . . . 1 . . . . . . Recycling Units 3 | . 1 . . . . . 2 . . . . . Scanalyzers 3 | . . . . . . . 2 1 . . . . Garrison Access 2 | . . . . . . 1 . 1 . . . . Total Hacks 96 | . 8 . 1 . 16 25 17 14 . 1 14 . Successful 48 | . 6 . 1 . 7 4 7 8 . 1 14 . Failed 48 | . 2 . . . 9 21 10 6 . . . . Catastrophic 11 | . . . . . 2 7 1 1 . . . . Database Lockouts . | . . . . . . . . . . . . . Manual 47 | . 5 . 1 . 14 16 6 5 . . . . Terminals 54 | . 6 . . . 16 18 8 6 . . . . Fabricators 3 | . . . . . . 3 . . . . . . Repair Stations 2 | . . . . . . 2 . . . . . . Recycling Units 7 | . 2 . . . . . 5 . . . . . Scanalyzers 10 | . . . . . . . 4 6 . . . . Garrison Access 4 | . . . . . . 2 . 2 . . . . Terminal Hacks 22 | . 2 . 1 . 1 1 1 1 . 1 14 . Record 2 | . . . . . . . . . . . 2 . Prototype ID Bank 11 | . . . . . . . . . . . 11 . Open Door 2 | . . . . . . . . . . 1 1 . Terminal Index 2 | . 1 . . . 1 . . . . . . . Recycling Unit Index 1 | . . . . . . . 1 . . . . . Alert Level 1 | . . . . . . . . 1 . . . . Locate Traps 1 | . . . . . . 1 . . . . . . Hauler Manifests 1 | . 1 . . . . . . . . . . . Derelict Proto ID Bank 1 | . . . 1 . . . . . . . . . Fabricator Hacks . | . . . . . . . . . . . . . Repair Station Hacks 1 | . . . . . . 1 . . . . . . Scan Component 1 | . . . . . . 1 . . . . . . Recycling Unit Hacks 3 | . 1 . . . . . 2 . . . . . Process 2 | . 1 . . . . . 1 . . . . . Report Inventory 1 | . . . . . . . 1 . . . . . Scanalyzer 8 | . . . . . . . 2 6 . . . . Insert Component 4 | . . . . . . . 1 3 . . . . Analyze 4 | . . . . . . . 1 3 . . . . Garrison Access Hacks 1 | . . . . . . . . 1 . . . . Seal Access 1 | . . . . . . . . 1 . . . . Unauthorized Hacks 13 | . 3 . . . 6 2 2 . . . . . Terminals 13 | . 3 . . . 6 2 2 . . . . . Track 2 | . 1 . . . 1 . . . . . . . Assimilate 2 | . . . . . 1 . 1 . . . . . Botnet 8 | . 1 . . . 4 2 1 . . . . . Operators 1 | . 1 . . . . . . . . . . . Fabricators . | . . . . . . . . . . . . . Repair Stations . | . . . . . . . . . . . . . Recycling Units . | . . . . . . . . . . . . . Scanalyzers . | . . . . . . . . . . . . . Garrison Access . | . . . . . . . . . . . . . Data Cores Recovered 2 | . . . . . . . 1 1 . . . . Used 2 | . . . . . . . 1 1 . . . . Hacking Detections 32 | . 2 . . . 4 14 6 6 . . . . Full Trace Events 4 | . . . . . . 2 2 . . . . . Feedback Events . | . . . . . . . . . . . . . Feedback Blocked . | . . . . . . . . . . . . . Robot Schematics Acquired . | . . . . . . . . . . . . . Robots Built . | . . . . . . . . . . . . . Authchips . | . . . . . . . . . . . . . Time . | . . . . . . . . . . . . . Total Robot Build Rating . | . . . . . . . . . . . . . Part Schematics Acquired 4 | . . . . . . . 1 3 . . . . Parts Built . | . . . . . . . . . . . . . Authchips . | . . . . . . . . . . . . . Time . | . . . . . . . . . . . . . Total Part Build Rating . | . . . . . . . . . . . . . Parts Repaired . | . . . . . . . . . . . . . Time . | . . . . . . . . . . . . . Parts Recycled . | . . . . . . . . . . . . . Recycled Matter 82 | . 47 . . . . . 35 . . . . . Retrieved Matter . | . . . . . . . . . . . . . Retrieved Components . | . . . . . . . . . . . . . Parts Scanalyzed 4 | . . . . . . . 1 3 . . . . Part Schematics Acquired 4 | . . . . . . . 1 3 . . . . Parts Damaged 2 | . . . . . . . . 2 . . . . Bothacking | -11 -10 -10 -10 -9 -8 -7 -6 -5 -5 -5 -5 -4 ------------ Run | Yrd Mat Min Exi Min Mat Fac Fac Fac Upp Upp War Pro Used RIF Installer . | . . . . . . . . . . . . . Robots Hacked 1 | . . . . . . . 1 . . . . . Non-combat 1 | . . . . . . . 1 . . . . . Combat . | . . . . . . . . . . . . . Robot Hacks Applied 1 | . . . . . . . 1 . . . . . parse_system 1 | . . . . . . . 1 . . . . . Relay Couplers Released . | . . . . . . . . . . . . . Fabnet Peak Effective % . | . . . . . . . . . . . . . Robots Rewired . | . . . . . . . . . . . . . Allies Hacked . | . . . . . . . . . . . . . Hacks Repelled . | . . . . . . . . . . . . . Allies | -11 -10 -10 -10 -9 -8 -7 -6 -5 -5 -5 -5 -4 -------- Run | Yrd Mat Min Exi Min Mat Fac Fac Fac Upp Upp War Pro Total Allies 4 | . . 2 . . 1 . 1 . . . . . Largest Group 2 | . . 2 2 . 1 . 1 . . . . . Highest-Rated Group 42 | . . 42 42 . 10 . 26 . . . . . Highest-Rated Ally 31 | . . 31 31 . 10 . 26 . . . . . Total Orders 2 | . . . . . . . 2 . . . . . STAY 1 | . . . . . . . 1 . . . . . EXPLORE 1 | . . . . . . . 1 . . . . . Ally Attacks . | . . . . . . . . . . . . . Total Damage . | . . . . . . . . . . . . . Kills . | . . . . . . . . . . . . . Allies Corrupted . | . . . . . . . . . . . . . Allies Melted . | . . . . . . . . . . . . . Intel | -11 -10 -10 -10 -9 -8 -7 -6 -5 -5 -5 -5 -4 ------- Run | Yrd Mat Min Exi Min Mat Fac Fac Fac Upp Upp War Pro Robot Analysis Total . | . . . . . . . . . . . . . Derelict Logs Recovered 7 | . . 3 . 1 . . . . . 3 . . Drone Launches 1 | . . . . . . . 1 . . . . . Drone Recoveries . | . . . . . . . . . . . . . Exploration | -11 -10 -10 -10 -9 -8 -7 -6 -5 -5 -5 -5 -4 ------------- Run | Yrd Mat Min Exi Min Mat Fac Fac Fac Upp Upp War Pro Turns Passed 5981 | 193 667 507 450 776 652 1283 516 428 33 211 157 108 Spaces Moved 8194 | 113 351 302 279 464 427 1973 1184 1009 139 972 699 282 Core 21 | 11 . . . . . . . . . . . 10 Treads 1562 | 102 351 302 279 464 64 . . . . . . . Legs 973 | . . . . . 363 610 . . . . . . Wheels . | . . . . . . . . . . . . . Hover . | . . . . . . . . . . . . . Flight 5638 | . . . . . . 1363 1184 1009 139 972 699 272 Fastest Speed 20 | 50 160 160 160 160 45 23 20 20 20 20 20 23 Average Speed 57 | 151 160 160 160 160 108 48 21 22 20 20 20 27 Slowest Speed 260 | 160 160 160 160 160 260 105 23 85 85 20 32 200 Overloaded Moves 11 | . . . . . 11 . . . . . . . Propulsion Burnouts . | . . . . . . . . . . . . . Robots Hopped 7 | . . . . . . 2 5 . . . . . Cave-ins Triggered . | . . . . . . . . . . . . . Exploration Rate (%) 48 | 5 36 69 62 86 37 42 27 21 35 86 87 40 Regions Visited 12 Branch Regions 7 Pre-discovered Areas 2 | . . 1 . . . . . . . 1 . . Known Exits Taken 5 | . . . . . 1 . . 1 1 1 1 . Unknown Exits Taken 7 | 1 1 1 1 1 . 1 1 . . . . . Scrap Searched 3 | . . 1 . 1 . . . . . 1 . . Spaces Dug 96 | . . . . . 1 47 30 14 . 4 . . Terrain Destroyed 274 | . . 26 . 34 116 48 30 14 . 4 . 2 Melee 74 | . . . . . 1 36 20 13 . 4 . . Projectile 25 | . . . . . . 12 10 1 . . . 2 AOE 175 | . . 26 . 34 115 . . . . . . . Terrain Rammed . | . . . . . . . . . . . . . Walls Destroyed . | . . . . . . . . . . . . . Machines Disabled . | . . . . . . . . . . . . . Actions | -11 -10 -10 -10 -9 -8 -7 -6 -5 -5 -5 -5 -4 --------- Run | Yrd Mat Min Exi Min Mat Fac Fac Fac Upp Upp War Pro Total 9040 | 129 400 323 284 482 541 2204 1369 1168 141 980 713 306 Wait 327 | 2 15 13 . 4 38 98 105 52 . . . . Move 8168 | 112 350 301 278 463 426 1968 1173 1008 138 971 698 282 Hop 7 | . . . . . . 2 5 . . . . . Pick Up 57 | 6 3 3 2 1 8 12 9 7 . 2 3 1 Fast Attach 39 | 5 . . . 2 6 11 2 5 . . 5 3 Attach 32 | 2 . . . . 9 6 . 4 1 . 2 8 Detach 9 | . . . . 1 . 1 . 2 . . . 5 Swap 29 | . 1 1 1 . 7 5 7 3 2 2 . . Drop 50 | . . 3 3 . 2 18 11 8 . 1 4 . Fire 160 | 2 31 2 . 11 40 23 26 18 . . . 7 Melee 99 | . . . . . 5 42 31 16 . 4 1 . Ram . | . . . . . . . . . . . . . Kick . | . . . . . . . . . . . . . Crush . | . . . . . . . . . . . . . Escape Stasis 63 | . . . . . . 18 . 45 . . . . Rewire . | . . . . . . . . . . . . . Trap . | . . . . . . . . . . . . . Miscellaneous . | . . . . . . . . . . . . . Route ------- -11/Scrapyard -10/Materials (discovered 3 exits: [*Mat] / [*Min] / [*Sub]) -10/Mines (discovered 3 exits: [*Mat x2] / *Exi) -10/Exiles -9/Mines -8/Materials (discovered 2 exits: *Fac x2) -7/Factory (discovered 2 exits: *Fac x2) -6/Factory -5/Factory (discovered 2 exits: *Fac / *Upp) -5/Upper Caves -5/Upper Caves -5/Warlord -4/Proximity Caves History --------- Turn | Location | Event 37 | -11/Scrapyard | Discovered new exit (range 16) 194 | -11/Scrapyard | Entered Materials 309 | -10/Materials | Build established: Mutant 429 | -10/Materials | Discovered new exit (range 3) 628 | -10/Materials | Discovered new exit (range 8) 688 | -10/Materials | Discovered new exit (range 12) 861 | -10/Materials | Entered Mines 1010 | -10/Mines | Found a damaged Exp. Sensor Array with a note attached 1025 | -10/Mines | Found Prototype Device 1079 | -10/Mines | Learned Materials trap positions 1151 | -10/Mines | Discovered new exit (range 5) 1233 | -10/Mines | Received a Rocket Launcher from a helpful Derelict 1294 | -10/Mines | Learned Materials terminal intel 1294 | -10/Mines | Discovered new exit (range 9) 1296 | -10/Mines | Learned location of Zion (-6) 1349 | -10/Mines | Deemed a non-threat by the Exiles lab entrance 1350 | -10/Mines | Discovered new exit (range 5) 1368 | -10/Mines | Entered Exiles 1368 | -10/Exiles | Accompanied by 2 allies 1398 | -10/Exiles | Led the pair of lost Derelicts to a safe place 1408 | -10/Exiles | Met 8R-AWN 1434 | -10/Exiles | Met EX-HEX 1495 | -10/Exiles | Met EX-DEC 1517 | -10/Exiles | Met EX-BIN 1552 | -10/Exiles | Aligned with FarCom system 1554 | -10/Exiles | Given EX-Vault access code 1602 | -10/Exiles | Opened EX-Vault 1621 | -10/Exiles | Found Potential Leg 1623 | -10/Exiles | Found Potential Leg 1661 | -10/Exiles | Warned to stay clear of 0b10 Research branches 1802 | -10/Exiles | Discovered new exit (range 12) 1818 | -10/Exiles | Left Exiles lab with Potential Leg 1818 | -10/Exiles | Entered Mines 2332 | -9/Mines | Learned 8 Materials zone layouts 2458 | -9/Mines | Discovered new exit (range 5) 2594 | -9/Mines | Entered Materials 2594 | -8/Materials | Evolved 4 slots: Propulsion x2, Utility x2 2595 | -8/Materials | Identified exit to Factory 2596 | -8/Materials | Loaded intel: 16 trap records 2597 | -8/Materials | Loaded intel: 12 terminal locations 3040 | -8/Materials | Lost 6 parts (1p1n1u3w) 3226 | -8/Materials | Discovered exit to Factory (range 15) 3246 | -8/Materials | Entered Factory 3246 | -7/Factory | Evolved 2 slots: Propulsion x1, Utility x1 3265 | -7/Factory | Lost 4 parts (1p2u1w) 3315 | -7/Factory | Identified Exp. Sensor Array 3676 | -7/Factory | Discovered new exit (range 15) 4335 | -7/Factory | Discovered new exit (range 16) 4387 | -7/Factory | Build established: Scout 4529 | -7/Factory | Entered another Factory area 4529 | -6/Factory | Evolved 2 slots: Power x1, Propulsion x1 4546 | -6/Factory | Discovered new exit (range 10) 5045 | -6/Factory | Entered another Factory area 5045 | -5/Factory | Evolved 2 slots: Utility x2 5063 | -5/Factory | Discovered new exit (range 8) 5070 | -5/Factory | Identified exit to Factory 5394 | -5/Factory | Discovered new exit (range 5) 5398 | -5/Factory | Identified exit to Upper Caves 5473 | -5/Factory | Entered Upper Caves 5503 | -5/Upper Caves | Discovered new exit (range 13) 5506 | -5/Upper Caves | Identified exit to Upper Caves 5506 | -5/Upper Caves | Entered another Upper Caves area 5532 | -5/Upper Caves | Learned location of Armory (-3) 5537 | -5/Upper Caves | Spotted B-75 Beast 5637 | -5/Upper Caves | Learned location of 1 exit from Factory 5651 | -5/Upper Caves | Learned location of 1 exit from Factory 5715 | -5/Upper Caves | Discovered new exit (range 15) 5717 | -5/Upper Caves | Identified exit to Warlord 5717 | -5/Upper Caves | Entered Warlord 5725 | -5/Warlord | System corruption cleaned by Quarantine Array 5739 | -5/Warlord | Met Warlord 5758 | -5/Warlord | Warlord's base attacked by MAIN.C 5791 | -5/Warlord | Build established: Sprinter 5851 | -5/Warlord | Opened side exit 5862 | -5/Warlord | Discovered new exit (range 9) 5872 | -5/Warlord | Identified exit to Proximity Caves 5874 | -5/Warlord | Entered Proximity Caves 5912 | -4/Proximity Caves | Attracted the attention of an 0b10 outpost 5946 | -4/Proximity Caves | Core integrity fell below 50% 5967 | -4/Proximity Caves | Spotter reported a threat 5977 | -4/Proximity Caves | Released all parts (5) 5980 | -4/Proximity Caves | Core integrity fell below 20% 5982 | -4/Proximity Caves | Destroyed by G-67 Veteran with Plasma Rifle Last Messages --------------- 05950_ Acquired Cesium-ion Thruster. 05951_ Critical hit (Burn: +50). 05951_ Imp. Cesium-ion Thruster destroyed. 05957_ Cesium-ion Thruster fries itself beyond repair. 05966_ Proton Missile Launcher destroyed. 05967_ ALERT: Unidentified potential threat approaching Complex 0b10. 05968_ Critical hit (Burn: +50). 05970_ G-67 Veteran Adv. Heat Sink blasted off. 05974_ Remote Force Field destroyed. 05974_ Cesium-ion Thruster destroyed. 05974_ G-67 Veteran destroyed. 05976_ Mak. Light Armor Plating destroyed. 05977_ Released Mic. Fission Core. 05977_ Released Med. Storage Unit. 05977_ Released Machine Analyzer. 05977_ Released Imp. Signal Interpreter. 05977_ Released Imp. Cesium-ion Thruster. 05977_ Acquired Imp. Cesium-ion Thruster. 05981_ Lgt. Antimatter Reactor fries itself beyond repair. 05982_ Slug penetrates Wall. Map ----- +----------------------------------------------------+ | ?????????????????????????????????????????????????? | | ?????????????????????????????????????????????????? | | ?????????????????????????????????????????????????? | | ?????????????????????????????????????????????????? | | ?????????????????????????????????????????????????? | | ?????????????????????????????????????????????????? | | ?????????????????????????????????????????????????? | | ?????????????????????????????????????????????????? | | ?????????????????????????????????????????????????? | | ?????????????????????????????????????????????????? | | ?????????????????####????????????????????????????? | | ????????????????## ##???????????????????????????? | | ????????????????# ##??????????????????????????? | | ????????????????# ####???????????????????????? | | ????????????????# #???????????????????????? | | ????????????????# #????????????????????????? | | ?????????????????# #????????????????????????? | | ?????????????????# * #????????????????????????? | | ????#???????????## ! #????????????????????????? | | ???# ????????### ####?????????????????????? | | ?## ????????# ##????????????????????? | | ?? ????????# #????????????????????? | | ?? ????????# ### ##????????????????????? | | ??? ????????# #?#; ##?????????????????????? | | ??? ????????## #?## #?###??????#???????????? | | ???# ?????????#####?#!g @## ### ??????????? | | ???# ##????????## ##ghg $ ??????????? | | ???# ##??????## %h ??????????? | | ???? ##?????# ## #???????????? | | ????? ##????##### ##?????#???????????? | | ###### ##???##??# $ ##??????????????????? | | ## #???# ### ##??????????????????? | | #???# $ #??????????????????? | | ## ##???# % #### #??????????????????? | | ?# #????## ##??? #??????????????????? | | # ### #####?### ###???? #??????????????????? | | ## ##?# ##??# ####??? ;#??????????????????? | | ?####??# ##?# #????##??????????????????? | | ???????# ### ## #????????????????????????? | | ???????## ## ## ####?????????????????????? | | ????????# #?????????????????????? | | ????????# #?????????????????????? | | ???# """ ##### ### #?????????????????????? | | ???# """""" #???## ##?????????????????????????? | | ???# """ """ #????# #??????????????????????????? | | ???? """ #????# #??????????????????????????? | | ???????" """ #????# #??????????????????????????? | | ???????""""" #????# #??????????????????????????? | | ?????????""" #????# #??????????????????????????? | | ??????????? ????# #??????????????????????????? | +----------------------------------------------------+ Best States ------------- Heat Dissipation 71 Energy Generation 31 Energy Capacity 370 Matter Stores 300 Matter Capacity 300 Sight Range 16 Terrain Scan Density 10 Additional Mass Support 9 Base Temperature (-) 100 Armor Coverage 825 Propulsion Shielding 66 Evasion (%) 66 Targeting Accuracy 8 Recoil Reduction 2 Offensive Hacking 10 Item Schematics ----------------- Actuator Array | -6/Factory | Scanalyzed Hacking Suite | -5/Factory | Scanalyzed Field Propulsion Drive | -5/Factory | Scanalyzed Lgt. Fission Core | -5/Factory | Scanalyzed Robot Schematics ------------------ None Fabricated ------------ Nothing Alien Tech Used ----------------- None Achievements -------------- None Challenges ------------ None Game ------ Seed CommSpikedWarhead Manual? 0 Play Time 02:26:15 Cumulative 49.8 hours Start 2024.07.20 @ 00:15:07 End 2024.07.23 @ 19:59:08 Sessions 8 Manual Loads 0 Difficulty Rogue Special Mode None Game No. 72 Rogue 72 Adventurer 0 Explorer 0 Win Type - Total 0 Types 0/0/0/0/0/0/0/0/0 Lore% 27 Gallery% 31 Achievement% 33 Wizard Run 0 Options --------- Layout 0 ASCII 0 Keyboard 0 Movement Arrows Keybinds 0 Fullscreen 2 Font 18/SmallcapsGlow Map View 76x50 Zoom Use 0% Tactical HUD 1 Map Filters NONE Filters NONE Steam 1 RUN: d430d052-dda0-4b8e-85ce-2c72de428806